fUSD/lending_fUSD_20251224
["ID","MTS","AMOUNT","RATE_DAILY","PERIOD"]
[399612431,1766544674258,-500.0,0.00016398,2]
[399612432,1766544674275,-500.0,0.00016398,2]
[399612433,1766544674287,-500.0,0.00016398,2]
[399612434,1766544674298,-564.0,0.00019983,2]
[399612435,1766544674309,-564.0,0.00022983,2]
[399612436,1766544674319,-564.0,0.00025983,2]
[399612437,1766544674330,-417.74643856,0.000279,2]
[399612438,1766544674341,-564.0,0.00028983,2]
[399612439,1766544674352,-151.0,0.00032877,31]
[399612440,1766544674362,-151.0,0.00032877,31]
[399612441,1766544674373,-151.0,0.00032877,31]
[399612442,1766544674384,-151.0,0.00032877,31]
[399612443,1766544674394,-151.0,0.00032877,31]
[399612444,1766544674405,-151.0,0.00032877,31]
[399612445,1766544674415,-172.33725229,0.00034901,2]
[399612446,1766544674426,-151.0,0.00035999,31]
[399612447,1766544674437,-151.0,0.00035999,31]
[399612448,1766544674447,-151.0,0.00035999,31]
[399612449,1766544674457,-216.678829,0.00038999,120]
[399612450,1766544674467,-151.0,0.00038999,120]
[399612451,1766544674477,-266.139282,0.00038999,120]
[399612452,1766544674488,-624942.15184956,0.00039,2]
[399612453,1766544674626,-500.0,0.0002,2]
[399612454,1766544674637,-147.17648879,0.00031983,2]
[399612455,1766544674655,-416.82351121,0.00031983,2]
[399612456,1766544674666,-29.71682801,0.00034983,2]
[399612457,1766544674680,-266.80887864,0.00034983,2]
[399612458,1766544674698,-235.45029335,0.00034983,2]
[399612459,1766544674708,-247.00629844,0.000372,120]
[399612460,1766544674720,-3650.03855759,0.00039,2]
[399612461,1766544674733,-568.91284048,0.00039,2]
[399612466,1766544726997,437.14765558,0.00015173,2]
[399612469,1766544745685,733.59,0.00013699,2]
[399612575,1766545319836,408.01375928,0.00015073,2]
[399612576,1766545425462,166.66,0.00014909,2]
[399612593,1766545629145,272.00917286,0.00015072,2]
[399612598,1766545679200,181.71,0.00012123,2]
[399612608,1766545803914,165.10888867,0.00015072,2]
[399612611,1766545832283,-238.0,0.00015172,2]
[399612612,1766545832294,-300.0,0.00015172,2]
[399612613,1766545832304,-1200.0,0.00015172,2]
[399612614,1766545832314,-195.0,0.00015172,2]
[399612615,1766545832324,-600.0,0.00015172,2]
[399612616,1766545832335,-300.0,0.00015172,2]
[399612617,1766545832344,-250.0,0.00015172,2]
[399612618,1766545832355,-300.0,0.00015172,2]
[399612619,1766545832364,-310.33452801,0.00015172,2]
[399612620,1766545832374,-500.0,0.00015173,2]
[399612621,1766545832384,-500.0,0.00015173,2]
[399612622,1766545832394,-500.0,0.00015173,2]
[399612623,1766545832404,-151.46,0.00015173,2]
[399612624,1766545832414,-152.94,0.00015173,2]
[399612625,1766545832425,-166.66,0.00015223,2]
[399612626,1766545832435,-591.54,0.0001548,2]
[399612627,1766545832446,-166.66,0.00015537,2]
[399612628,1766545832456,-272.00917284,0.00015655,2]
[399612629,1766545832467,-1000.0,0.00015721,2]
[399612630,1766545832476,-1000.0,0.00015721,2]
[399612631,1766545832486,-1000.0,0.00015721,2]
[399612632,1766545832496,-166.66,0.00015851,2]
[399612634,1766545832506,-151.0,0.00015967,2]
[399612636,1766545832515,-151.0,0.00015968,2]
[399612637,1766545832525,-229.42778005,0.00016099,2]
[399612639,1766545832535,-2541.86586204,0.00016099,2]
[399612641,1766545832545,-166.66,0.00016165,2]
[399612642,1766545832555,-550.0,0.00016167,2]
[399612643,1766545832565,-500.0,0.00016167,2]
[399612644,1766545832575,-229.7205891,0.00016167,2]
[399612645,1766545832585,-500.0,0.00016167,2]
[399612646,1766545832595,-251.21868756,0.00016167,2]
[399612647,1766545832604,-96512.49269382,0.00016168,2]
[399612648,1766545832616,-46272.85165987,0.00016168,2]
[399612649,1766545832628,-480.7494,0.00016168,2]
[399612650,1766545832662,-1961.94354208,0.00016168,2]
[399612651,1766545832673,-1491.53744342,0.00016168,2]
[399612652,1766545832685,-400.58635861,0.00016168,2]
[399612653,1766545832696,-369.76382536,0.00016168,2]
[399612654,1766545832716,-953.4785767,0.00016168,2]
[399612655,1766545838438,-317.8434048,0.00016167,2]
[399612656,1766545838546,-182.1565952,0.00016167,2]
[399612657,1766545838557,-500.0,0.00016167,2]
[399612658,1766545838567,-640.85259249,0.00016167,2]
[399612659,1766545838578,-500.0,0.00016167,2]
[399612660,1766545838588,-500.0,0.00016167,2]
[399612661,1766545838598,-500.0,0.00016167,2]
[399612662,1766545838608,-500.0,0.00016167,2]
[399612663,1766545838617,-223.63402671,0.00016167,2]
[399612664,1766545838628,-851556.59650014,0.00016168,2]
[399612665,1766545838638,-152.87,0.00016199,2]
[399612666,1766545838647,-150.86,0.00016199,2]
[399612668,1766545838657,-152.75,0.00016199,2]
[399612669,1766545838667,-6199.5,0.00016199,2]
[399612670,1766545838677,-272.00917284,0.00016238,2]
[399612671,1766545838686,-1500.0,0.00016268,2]
[399612672,1766545838696,-1569.98515972,0.00016268,2]
[399612673,1766545838705,-1500.0,0.00016268,2]
[399612674,1766545838715,-500.0,0.00016299,2]
[399612675,1766545838725,-500.0,0.00016299,2]
[399612676,1766545838735,-500.0,0.00016299,2]
[399612677,1766545838745,-500.0,0.00016299,2]
[399612678,1766545838755,-500.0,0.00016299,2]
[399612679,1766545838765,-500.0,0.00016299,2]
[399612680,1766545838775,-500.0,0.00016299,2]
[399612681,1766545838784,-500.0,0.00016299,2]
[399612682,1766545838794,-500.0,0.00016299,2]
[399612683,1766545838804,-500.0,0.00016299,2]
[399612684,1766545838814,-500.0,0.00016299,2]
[399612685,1766545838824,-500.0,0.00016299,2]
[399612686,1766545838834,-500.0,0.00016299,2]
[399612687,1766545838844,-500.0,0.00016299,2]
[399612688,1766545838854,-500.0,0.00016299,2]
[399612689,1766545838865,-500.0,0.00016299,2]
[399612690,1766545838875,-500.0,0.00016299,2]
[399612691,1766545838885,-500.0,0.00016299,2]
[399612692,1766545838895,-500.0,0.00016299,2]
[399612693,1766545838908,-500.0,0.00016299,2]
[399612694,1766545838918,-500.0,0.00016299,2]
[399612695,1766545838928,-500.0,0.00016299,2]
[399612696,1766545838937,-500.0,0.00016299,2]
[399612697,1766545838948,-500.0,0.00016299,2]
[399612698,1766545838958,-500.0,0.00016299,2]
[399612699,1766545838968,-425.97674525,0.00016299,2]
[399612700,1766545838978,-2500.0,0.00016299,2]
[399612701,1766545838989,-978.3996,0.00016299,2]
[399612702,1766545838999,-151.0,0.00016328,2]
[399612703,1766545839009,-151.0,0.00016328,2]
[399612704,1766545839019,-151.0,0.00016328,2]
[399612705,1766545839029,-151.0,0.00016328,2]
[399612706,1766545839039,-151.0,0.00016328,2]
[399612707,1766545839050,-151.0,0.00016328,2]
[399612708,1766545839067,-151.0,0.00016328,2]
[399612709,1766545839077,-151.0,0.00016328,2]
[399612710,1766545839087,-151.0,0.00016328,2]
[399612711,1766545839099,-151.0,0.00016328,2]
[399612712,1766545839109,-151.0,0.00016328,2]
[399612713,1766545839121,-151.0,0.00016328,2]
[399612714,1766545839132,-151.0,0.00016328,2]
[399612715,1766545839143,-151.0,0.00016328,2]
[399612716,1766545839153,-151.0,0.00016328,2]
[399612717,1766545839164,-151.0,0.00016328,2]
[399612718,1766545839173,-151.0,0.00016328,2]
[399612719,1766545839184,-151.0,0.00016328,2]
[399612720,1766545839195,-151.0,0.00016328,2]
[399612721,1766545839205,-151.0,0.00016328,2]
[399612722,1766545839215,-622.451,0.00016338,2]
[399612723,1766545839225,-194.945,0.00016338,2]
[399612724,1766545839235,-1686.79400628,0.00016338,2]
[399612725,1766545839245,-199.61708001,0.00016338,2]
[399612726,1766545839255,-168.92699187,0.00016338,2]
[399612727,1766545839264,-500.0,0.00016398,2]
[399612728,1766545839274,-500.0,0.00016398,2]
[399612729,1766545839284,-500.0,0.00016398,2]
[399612730,1766545839298,-500.0,0.00016398,2]
[399612731,1766545839309,-500.0,0.00016438,2]
[399612732,1766545839319,-500.0,0.00016438,2]
[399612733,1766545839329,-500.0,0.00016438,2]
[399612734,1766545839339,-500.0,0.00016438,2]
[399612735,1766545839348,-500.0,0.00016438,2]
[399612736,1766545839359,-500.0,0.00016438,2]
[399612737,1766545839369,-500.0,0.00016438,2]
[399612738,1766545839379,-500.0,0.00016438,2]
[399612739,1766545839388,-500.0,0.00016438,2]
[399612740,1766545839398,-500.0,0.00016438,2]
[399612741,1766545839408,-500.0,0.00016438,2]
[399612742,1766545839417,-500.0,0.00016438,2]
[399612743,1766545839427,-500.0,0.00016438,2]
[399612744,1766545839436,-500.0,0.00016438,2]
[399612745,1766545839446,-500.0,0.00016438,2]
[399612746,1766545839456,-500.0,0.00016438,2]
[399612747,1766545839465,-500.0,0.00016438,2]
[399612748,1766545839476,-500.0,0.00016438,2]
[399612749,1766545839498,-500.0,0.00016438,2]
[399612750,1766545839518,-500.0,0.00016438,2]
[399612751,1766545839528,-500.0,0.00016438,2]
[399612752,1766545839538,-500.0,0.00016438,2]
[399612753,1766545839548,-500.0,0.00016438,2]
[399612754,1766545839558,-425.20731386,0.00016438,2]
[399612755,1766545839568,-500.0,0.00016438,2]
[399612756,1766545839579,-500.0,0.00016438,2]
[399612757,1766545839589,-500.0,0.00016438,2]
[399612758,1766545839599,-500.0,0.00016438,2]
[399612759,1766545839609,-500.0,0.00016438,2]
[399612760,1766545839619,-500.0,0.00016438,2]
[399612761,1766545839628,-500.0,0.00016438,2]
[399612762,1766545839638,-500.0,0.00016438,2]
[399612763,1766545839655,-500.0,0.00016438,2]
[399612764,1766545839665,-500.0,0.00016438,2]
[399612765,1766545839675,-500.0,0.00016438,2]
[399612766,1766545839684,-500.0,0.00016438,2]
[399612767,1766545839694,-500.0,0.00016438,2]
[399612768,1766545839704,-500.0,0.00016438,2]
[399612769,1766545839714,-500.0,0.00016438,2]
[399612770,1766545839723,-500.0,0.00016438,2]
[399612771,1766545839734,-500.0,0.00016438,2]
[399612772,1766545839744,-500.0,0.00016438,2]
[399612773,1766545839753,-500.0,0.00016438,2]
[399612774,1766545839764,-500.0,0.00016438,2]
[399612775,1766545839775,-500.0,0.00016438,2]
[399612776,1766545839784,-500.0,0.00016438,2]
[399612777,1766545839794,-500.0,0.00016438,2]
[399612778,1766545839803,-500.0,0.00016438,2]
[399612779,1766545839813,-500.0,0.00016438,2]
[399612780,1766545839822,-171.61,0.00016475,2]
[399612781,1766545839832,-166.66,0.00016479,2]
[399612782,1766545839841,-20316.01915488,0.00016499,2]
[399612783,1766545839855,-605.1324859,0.00016499,2]
[399612784,1766545839866,-264.38697441,0.00016499,2]
[399612787,1766545840608,-12319.05128481,0.00016499,2]
[399612788,1766545840618,-1000.0,0.00016499,2]
[399612789,1766545840633,-420.0,0.00016602,2]
[399612790,1766545840649,-1680.0,0.00016686,2]
[399612791,1766545840660,-250.0,0.00016688,2]
[399612792,1766545840670,-300.0,0.00016689,2]
[399612793,1766545840680,-250.0,0.00016689,2]
[399612794,1766545840690,-600.0,0.00016689,2]
[399612795,1766545840701,-300.0,0.00016689,2]
[399612796,1766545840711,-1438.8540389,0.00016689,2]
[399612797,1766545840722,-195.0,0.00016689,2]
[399612798,1766545840732,-500.0,0.00016799,2]
[399612799,1766545840743,-500.0,0.00016799,2]
[399612800,1766545840753,-500.0,0.00016799,2]
[399612801,1766545840763,-500.0,0.00016799,2]
[399612802,1766545840774,-500.0,0.00016799,2]
[399612803,1766545840784,-500.0,0.00016799,2]
[399612804,1766545840794,-500.0,0.00016799,2]
[399612805,1766545840804,-500.0,0.00016799,2]
[399612806,1766545840814,-952.82457792,0.00016816,2]
[399612807,1766545840823,-2000.0,0.00016816,2]
[399612808,1766545840833,-326.94,0.00016999,2]
[399612809,1766545840845,-500.0,0.00016999,2]
[399612810,1766545840854,-500.0,0.00016999,2]
[399612811,1766545840864,-500.0,0.00016999,2]
[399612812,1766545840874,-542.17979999,0.00016999,2]
[399612813,1766545840884,-548.0,0.00017283,2]
[399612814,1766545840895,-168.0,0.00017337,2]
[399612816,1766545840905,-168.0,0.00017447,2]
[399612819,1766545840914,-168.0,0.00017575,2]
[399612821,1766545840924,-168.0,0.00018099,2]
[399612823,1766545840934,-587.0,0.00018166,2]
[399612825,1766545840945,-181.71,0.00018185,2]
[399612827,1766545840955,-2351.0,0.00018351,2]
[399612829,1766545840964,-201.90758002,0.00018523,2]
[399612830,1766545840974,-9999.99,0.00018533,2]
[399612831,1766545840985,-9999.99,0.00018533,2]
[399612832,1766545840995,-1194.93,0.00018533,2]
[399612833,1766545841004,-4999.99,0.00018533,2]
[399612834,1766545841014,-9999.99,0.00018533,2]
[399612835,1766545841023,-333.22,0.00018533,2]
[399612836,1766545841034,-999.99,0.00018533,2]
[399612837,1766545841044,-150.99,0.00018533,2]
[399612838,1766545841056,-9999.99,0.00018533,2]
[399612839,1766545841068,-299.99,0.00018533,4]
[399612840,1766545841078,-7622.43,0.00018533,2]
[399612841,1766545841089,-9999.99,0.00018533,2]
[399612842,1766545841100,-150.99,0.00018533,2]
[399612843,1766545841110,-151.12,0.000188,2]
[399612844,1766545841119,-168.0,0.00018823,2]
[399612845,1766545841129,-1686.79400626,0.00018845,2]
[399612846,1766545841141,-1187.07425713,0.00019,2]
[399612847,1766545841151,-644.75939923,0.00019,2]
[399612848,1766545841162,-200.18296457,0.00019082,2]
[399612849,1766545841172,-229.42778003,0.00019356,2]
[399612850,1766545841182,-1998.56,0.00019681,2]
[399612851,1766545841192,-228.266,0.00019983,2]
[399612852,1766545841202,-770.0,0.00020182,2]
[399612854,1766545841211,-733.59,0.00020187,2]
[399612855,1766545841222,-302.80123553,0.00020973,2]
[399612856,1766545841232,-501.12626334,0.00020973,2]
[399612857,1766545841242,-501.20680817,0.00020973,2]
[399612858,1766545841252,-200.07053152,0.00020973,2]
[399612859,1766545841262,-500.0,0.00020973,2]
[399612860,1766545841272,-500.0,0.00020973,2]
[399612861,1766545841283,-500.70766283,0.00020973,2]
[399612862,1766545841292,-500.7748224,0.00020973,2]
[399612863,1766545841303,-181.04592189,0.00020973,2]
[399612864,1766545841313,-500.0,0.00020973,2]
[399612865,1766545841323,-500.0,0.00020973,2]
[399612866,1766545841333,-505.10920999,0.00020973,2]
[399612867,1766545841343,-501.63628178,0.00020973,2]
[399612868,1766545841352,-501.1107739,0.00020973,2]
[399612869,1766545841362,-500.0923857,0.00020973,2]
[399612870,1766545841371,-501.24296412,0.00020973,2]
[399612871,1766545841381,-500.19289853,0.00020973,2]
[399612872,1766545841391,-500.0,0.00020973,2]
[399612873,1766545841401,-509.43327994,0.00020973,2]
[399612874,1766545841411,-164.90862468,0.00020973,2]
[399612875,1766545841422,-500.51005259,0.00020973,2]
[399612876,1766545841431,-501.52777641,0.00020973,2]
[399612877,1766545841442,-501.83382232,0.00020973,2]
[399612878,1766545841452,-501.65369722,0.00020973,2]
[399612879,1766545841462,-503.11330807,0.00020973,2]
[399612880,1766545841472,-506.49407509,0.00020973,2]
[399612881,1766545841481,-500.8423155,0.00020973,2]
[399612882,1766545841491,-6848.18,0.00021068,2]
[399612883,1766545841500,-1686.79400626,0.00021352,2]
[399612884,1766545841511,-6356.57,0.0002137,2]
[399612885,1766545841520,-248.34,0.000215,7]
[399612886,1766545841530,-888.4,0.00021603,2]
[399612887,1766545841539,-4807.0,0.00021895,2]
[399612888,1766545841549,-2430.0,0.00021895,2]
[399612889,1766545841560,-579.1625334,0.00021918,2]
[399612890,1766545841570,-156.381,0.00022183,2]
[399612891,1766545841579,-250.0,0.00022183,2]
[399612892,1766545841589,-211.528,0.00022183,2]
[399612893,1766545841598,-250.0,0.00022183,2]
[399612894,1766545841607,-250.0,0.00022183,2]
[399612895,1766545841617,-226.805,0.00022183,2]
[399612896,1766545841626,-166.0,0.00022183,2]
[399612897,1766545841635,-3455.717,0.00022183,2]
[399612898,1766545841645,-612.0,0.00022183,2]
[399612899,1766545841958,-1609.0,0.00022183,2]
[399612900,1766545841968,-1326.0,0.00022183,2]
[399612901,1766545841977,-409.0,0.00022183,2]
[399612902,1766545841987,-1263.0,0.00022183,2]
[399612903,1766545841996,-169.35,0.000222,7]
[399612904,1766545842006,-161.45,0.000226,3]
[399612905,1766545842018,-229.42778003,0.00022614,2]
[399612906,1766545842027,-150.0,0.00022983,2]
[399612907,1766545842037,-888.4,0.00023527,2]
[399612908,1766545842047,-150.18672367,0.00023673,2]
[399612909,1766545842059,-1686.79400626,0.00023859,2]
[399612910,1766545842070,-1000.0,0.00024658,2]
[399612911,1766545842079,-235.35241233,0.000247,2]
[399612912,1766545842089,-171.61,0.00024712,2]
[399612913,1766545842098,-151.0,0.00024797,7]
[399612914,1766545842110,-500.0,0.00024799,2]
[399612915,1766545842120,-500.0,0.00024799,2]
[399612916,1766545842130,-3730.9474,0.000248,2]
[399612917,1766545842142,-500.0,0.000248,2]
[399612918,1766545842151,-500.0,0.000248,2]
[399612919,1766545842161,-500.0,0.000248,2]
[399612920,1766545842171,-500.0,0.000248,2]
[399612921,1766545842180,-500.0,0.000248,2]
[399612922,1766545842189,-500.0,0.000248,2]
[399612923,1766545842199,-500.0,0.000248,2]
[399612924,1766545842208,-500.0,0.000248,2]
[399612925,1766545842218,-500.0,0.000248,2]
[399612926,1766545842227,-500.0,0.000248,2]
[399612927,1766545842237,-500.0,0.000248,2]
[399612928,1766545842246,-500.0,0.000248,2]
[399612929,1766545842256,-500.0,0.000248,2]
[399612930,1766545842266,-500.0,0.000248,2]
[399612931,1766545842275,-500.0,0.000248,2]
[399612932,1766545842284,-500.0,0.000248,2]
[399612933,1766545842294,-500.0,0.000248,2]
[399612934,1766545842303,-500.0,0.000248,2]
[399612935,1766545842313,-500.0,0.000248,2]
[399612936,1766545842322,-500.0,0.000248,2]
[399612937,1766545842332,-500.0,0.000248,2]
[399612938,1766545842342,-500.0,0.000248,2]
[399612939,1766545842351,-500.0,0.000248,2]
[399612940,1766545842360,-500.0,0.000248,2]
[399612941,1766545842370,-500.0,0.000248,2]
[399612942,1766545842379,-500.0,0.000248,2]
[399612943,1766545842389,-500.0,0.000248,2]
[399612944,1766545842398,-500.0,0.000248,2]
[399612945,1766545842409,-500.0,0.000248,2]
[399612946,1766545842419,-500.0,0.000248,2]
[399612947,1766545842428,-500.0,0.000248,2]
[399612948,1766545842438,-500.0,0.000248,2]
[399612949,1766545842448,-500.0,0.000248,2]
[399612950,1766545842457,-500.0,0.000248,2]
[399612951,1766545842468,-500.0,0.000248,2]
[399612952,1766545842477,-500.0,0.000248,2]
[399612953,1766545842489,-500.0,0.000248,2]
[399612954,1766545842498,-500.0,0.000248,2]
[399612955,1766545842508,-500.0,0.000248,2]
[399612956,1766545842519,-500.0,0.000248,2]
[399612957,1766545842528,-500.0,0.000248,2]
[399612958,1766545842538,-500.0,0.000248,2]
[399612959,1766545842547,-500.0,0.000248,2]
[399612960,1766545842556,-500.0,0.000248,2]
[399612961,1766545842566,-500.0,0.000248,2]
[399612962,1766545842575,-500.0,0.000248,2]
[399612963,1766545842584,-500.0,0.000248,2]
[399612964,1766545842594,-500.0,0.000248,2]
[399612965,1766545842604,-500.0,0.000248,2]
[399612966,1766545842613,-500.0,0.000248,2]
[399612967,1766545842623,-500.0,0.000248,2]
[399612968,1766545842632,-500.0,0.000248,2]
[399612969,1766545842642,-500.0,0.000248,2]
[399612970,1766545842652,-500.0,0.000248,2]
[399612971,1766545842661,-500.0,0.000248,2]
[399612972,1766545842671,-500.0,0.000248,2]
[399612973,1766545842681,-500.0,0.000248,2]
[399612974,1766545842691,-500.0,0.000248,2]
[399612975,1766545842701,-500.0,0.000248,2]
[399612976,1766545842711,-500.0,0.000248,2]
[399612977,1766545842721,-500.0,0.000248,2]
[399612978,1766545842731,-500.0,0.000248,2]
[399612979,1766545842741,-500.0,0.000248,2]
[399612980,1766545842751,-500.0,0.000248,2]
[399612981,1766545842761,-500.0,0.000248,2]
[399612982,1766545842771,-500.0,0.000248,2]
[399612983,1766545842780,-500.0,0.000248,2]
[399612984,1766545842790,-500.0,0.000248,2]
[399612985,1766545842800,-500.0,0.000248,2]
[399612986,1766545842810,-500.0,0.000248,2]
[399612987,1766545842819,-500.0,0.000248,2]
[399612988,1766545842830,-500.0,0.000248,2]
[399612989,1766545842839,-500.0,0.000248,2]
[399612990,1766545842849,-500.0,0.000248,2]
[399612991,1766545842858,-500.0,0.000248,2]
[399612992,1766545842867,-500.0,0.000248,2]
[399612993,1766545842876,-500.0,0.000248,2]
[399612994,1766545842886,-500.0,0.000248,2]
[399612995,1766545842895,-500.0,0.000248,2]
[399612996,1766545842905,-500.0,0.000248,2]
[399612997,1766545842914,-500.0,0.000248,2]
[399612998,1766545842924,-500.0,0.000248,2]
[399612999,1766545842934,-500.0,0.000248,2]
[399613000,1766545842943,-500.0,0.000248,2]
[399613001,1766545842953,-500.0,0.000248,2]
[399613002,1766545842963,-628.0,0.000248,2]
[399613003,1766545842972,-462327.39704,0.000248,3]
[399613004,1766545842982,-2430.0,0.00024895,2]
[399613005,1766545842993,-519.87265517,0.00024899,2]
[399613006,1766545843003,-405169.758477,0.000249,3]
[399613007,1766545843014,-496.0330514,0.00025083,2]
[399613008,1766545843023,-150.0,0.00025183,2]
[399613009,1766545843033,-150.0,0.00025183,2]
[399613010,1766545843043,-150.0,0.00025183,2]
[399613011,1766545843055,-150.0,0.00025183,2]
[399613012,1766545843068,-150.0,0.00025183,2]
[399613013,1766545843077,-150.0,0.00025183,2]
[399613014,1766545843087,-612.0,0.00025183,2]
[399613015,1766545843098,-1609.0,0.00025183,2]
[399613016,1766545843108,-409.0,0.00025183,2]
[399613017,1766545843118,-1263.0,0.00025183,2]
[399613018,1766545843128,-1000.0,0.000252,2]
[399613019,1766545843138,-888.4,0.00025452,2]
[399613020,1766545843148,-229.42778003,0.00025871,2]
[399613021,1766545843158,-150.0,0.00025983,2]
[399613022,1766545843168,-151.33873243,0.00026155,2]
[399613023,1766545843178,-10129.2439619,0.00026355,3]
[399613024,1766545843188,-1686.79400626,0.00026366,2]
[399613025,1766545843197,-733.59,0.00026676,2]
[399613026,1766545843207,-30000.0,0.00027,60]
[399613027,1766545843217,-150.0,0.00027369,2]
[399613028,1766545843227,-888.4,0.00027376,2]
[399613029,1766545843237,-500.0,0.00027397,14]
[399613030,1766545843247,-150.0,0.00027397,5]
[399613031,1766545843257,-745.03,0.000276,14]
[399613032,1766545843267,-496.03305138,0.00027846,2]
[399613033,1766545843277,-2430.0,0.00027895,2]
[399613034,1766545843288,-532.82,0.000279,2]
[399613035,1766545843298,-250.0,0.00027945,5]
[399613036,1766545843307,-169.35,0.00028,7]
[399613037,1766545843317,-10129.2439619,0.00028173,3]
[399613038,1766545843327,-150.0,0.00028183,2]
[399613039,1766545843336,-150.0,0.00028183,2]
[399613040,1766545843345,-150.0,0.00028183,2]
[399613041,1766545843355,-150.0,0.00028183,2]
[399613042,1766545843364,-150.0,0.00028183,2]
[399613043,1766545843373,-150.0,0.00028183,2]
[399613044,1766545843383,-612.0,0.00028183,2]
[399613045,1766545843392,-1609.0,0.00028183,2]
[399613046,1766545843401,-409.0,0.00028183,2]
[399613047,1766545843412,-1852.42,0.00028247,2]
[399613048,1766545843421,-350.3296444,0.00028493,5]
[399613049,1766545843431,-504.0,0.0002863,2]
[399613050,1766545843440,-338.5,0.00028762,10]
[399613051,1766545843450,-10000.0,0.00028767,60]
[399613052,1766545843459,-2000.0,0.000288,2]
[399613053,1766545843469,-10129.2439619,0.00028862,3]
[399613054,1766545843478,-1686.79400626,0.00028872,2]
[399613055,1766545843487,-1000.0,0.000289,2]
[399613056,1766545843497,-229.42778003,0.00029128,2]
[399613057,1766545843506,-888.4,0.000293,2]
[399613058,1766545843516,-1502.791178,0.000295,2]
[399613059,1766545843526,-1924.0,0.00029591,5]
[399613060,1766545843536,-50646.2198096,0.0002999,3]
[399613061,1766545843545,-150.0,0.0003,2]
[399613062,1766545843555,-100000.0,0.0003,80]
[399613063,1766545843578,-186.82,0.0003,22]
[399613064,1766545843589,-1500.0,0.0003,2]
[399613065,1766545843599,-20258.4879239,0.00030223,3]
[399613066,1766545843609,-500.0,0.00030233,2]
[399613067,1766545843619,-500.0,0.00030233,2]
[399613068,1766545843629,-500.0,0.00030233,2]
[399613069,1766545843639,-500.0,0.00030233,2]
[399613070,1766545843648,-500.0,0.00030233,2]
[399613071,1766545843658,-500.0,0.00030233,2]
[399613072,1766545843667,-500.0,0.00030233,2]
[399613073,1766545843677,-500.0,0.00030233,2]
[399613074,1766545843687,-500.0,0.00030233,2]
[399613075,1766545843696,-500.0,0.00030233,2]
[399613076,1766545843706,-500.0,0.00030233,2]
[399613077,1766545843716,-500.0,0.00030233,2]
[399613078,1766545843725,-500.0,0.00030233,2]
[399613079,1766545843735,-623.0,0.00030233,2]
[399613080,1766545843746,-500.0,0.00030233,2]
[399613081,1766545843755,-500.0,0.00030233,2]
[399613082,1766545843765,-500.0,0.00030233,2]
[399613083,1766545843775,-500.0,0.00030233,2]
[399613084,1766545843784,-500.0,0.00030233,2]
[399613085,1766545843794,-500.0,0.00030233,2]
[399613086,1766545843804,-500.0,0.00030233,2]
[399613087,1766545843814,-500.0,0.00030233,2]
[399613088,1766545843824,-500.0,0.00030233,2]